bitfinex/quotes_SOLUSD_20250908
["timestamp","ask_amount","ask_price","bid_price","bid_amount"]
[1757336324494,0.06,214.42,214.41,0.67]
[1757336324702,0.06,214.42,214.41,36.55]
[1757336325609,0.06,214.42,214.41,35.88]
[1757336329708,0.06,214.42,214.4,0.67]
[1757336330007,0.06,214.42,214.37,0.67]
[1757336330008,2.4794825,214.41,214.37,0.67]
[1757336330300,2.4794825,214.41,214.38,36.55]
[1757336331195,2.4794825,214.41,214.39,35.88]
[1757336331579,4.6641791,214.4,214.39,35.88]
[1757336336491,7.1436616,214.4,214.39,35.88]
[1757336338704,7.1436616,214.4,214.37,0.67]
[1757336339004,7.1436616,214.4,214.39,35.88]
[1757336342216,4.6641791,214.4,214.39,35.88]
[1757336344709,4.6641791,214.4,214.39,36.55]
[1757336345608,7.1436616,214.4,214.39,35.88]
[1757336345804,51.0,214.41,214.39,36.6]
[1757336346006,53.4794825,214.41,214.39,36.6]
[1757336346220,0.06,214.4,214.39,36.6]
[1757336346399,0.06,214.4,214.39,35.88]
[1757336347010,0.06,214.4,214.39,36.6]
[1757336347391,0.06,214.4,214.39,41.26439666]
[1757336349302,0.06,214.4,214.39,0.72]
[1757336349617,0.06,214.4,214.39,41.26439666]
[1757336352415,0.06,214.4,214.39,36.6]
[1757336354238,0.06,214.4,214.39,41.26439666]
[1757336355402,0.06,214.4,214.39,36.6]
[1757336355728,0.06,214.4,214.39,62.6]
[1757336358319,0.06,214.4,214.39,26.72]
[1757336358504,0.06,214.4,214.39,62.6]
[1757336363026,0.06,214.4,214.39,62.58]
[1757336366240,0.06,214.4,214.39,26.72]
[1757336366524,0.06,214.4,214.39,62.58]
[1757336366705,0.06,214.4,214.39,69.10993778]
[1757336375837,0.06,214.4,214.39,64.44554112]
[1757336381144,0.06,214.4,214.39,63.72554112]
[1757336381721,0.06,214.4,214.39,64.38554112]
[1757336382015,0.06,214.4,214.39,27.86554112]
[1757336382221,0.06,214.4,214.39,28.52554112]
[1757336382422,0.06,214.4,214.39,64.38554112]
[1757336382648,0.06,214.4,214.39,63.72554112]
[1757336383731,0.06,214.4,214.39,64.38554112]
[1757336389655,0.06,214.4,214.39,2.52554112]
[1757336389824,0.06,214.4,214.39,64.38554112]
[1757336393140,0.06,214.4,214.39,28.52554112]
[1757336393348,0.06,214.4,214.39,64.38554112]
[1757336395850,0.06,214.4,214.39,28.52554112]
[1757336396153,0.06,214.4,214.39,64.36554112]
[1757336398132,0.06,214.4,214.39,27.86554112]
[1757336398332,0.06,214.4,214.39,63.70554112]
[1757336400351,0.06,214.4,214.39,51.96113513]
[1757336400652,0.06,214.4,214.39,56.62553179]
[1757336400862,0.06,214.42,214.4,13.59559401]
[1757336401158,0.06,214.42,214.41,49.43559401]
[1757336401461,0.06,214.43,214.41,49.43559401]
[1757336401462,0.06,214.43,214.42,13.59559401]
[1757336401631,0.06,214.43,214.42,40.25559401]
[1757336401835,0.06,214.43,214.42,76.09559401]
[1757336402137,0.06,214.43,214.42,77.96026548]
[1757336402336,0.06,214.43,214.42,82.62400953]
[1757336402758,0.06,214.45,214.43,33.59559401]
[1757336402947,0.06,214.45,214.44,49.90192491]
[1757336403257,0.06,214.45,214.44,50.56192491]
[1757336403442,0.06,214.47,214.45,13.59559401]
[1757336403640,0.06,214.47,214.45,14.25559401]
[1757336404156,0.06,214.47,214.45,16.12000474]
[1757336404455,0.06,214.47,214.45,56.62309636]
[1757336404643,0.06,214.47,214.45,20.78309636]
[1757336404848,0.06,214.47,214.45,56.62309636]
[1757336405841,0.06,214.47,214.45,20.78309636]
[1757336406255,0.06,214.47,214.45,56.62309636]
[1757336406957,0.06,214.47,214.45,20.78309636]
[1757336407132,0.06,214.47,214.45,56.62309636]
[1757336407536,0.06,214.47,214.45,20.78309636]
[1757336407754,0.06,214.47,214.45,56.62309636]
[1757336408256,0.06,214.47,214.45,20.78309636]
[1757336408462,0.06,214.47,214.45,15.46000474]
[1757336408641,0.06,214.47,214.45,1.86441073]
[1757336408856,0.78,214.46,214.45,35.84]
[1757336409046,4.65557199,214.46,214.41,1.8651062]
[1757336409265,3.87557199,214.44,214.42,35.84]
[1757336409444,0.72,214.44,214.42,35.84]
[1757336410937,0.06,214.46,214.45,26.0]
[1757336411140,0.78,214.46,214.45,61.84]
[1757336411947,0.06,214.46,214.45,61.84]
[1757336413073,0.78,214.46,214.45,61.84]
[1757336413873,0.06,214.46,214.45,61.84]
[1757336416871,0.78,214.46,214.45,61.84]
[1757336417774,0.06,214.46,214.45,61.84]
[1757336419379,0.06,214.46,214.45,35.82]
[1757336420479,0.06,214.46,214.45,36.71]
[1757336420881,0.06,214.46,214.45,36.02]
[1757336423770,4.65557199,214.46,214.45,36.02]
[1757336423971,0.06,214.46,214.45,36.02]
[1757336424377,4.72287419,214.46,214.45,36.02]
[1757336425554,0.06,214.46,214.45,36.02]
[1757336425789,0.06,214.46,214.45,41.37309162]
[1757336426075,0.06,214.49,214.48,39.59559401]
[1757336426276,0.06,214.49,214.48,75.88183794]
[1757336426491,0.06,214.49,214.48,40.75183794]
[1757336426783,0.06,214.49,214.48,78.43616178]
[1757336427770,0.06,214.49,214.48,42.61616178]
[1757336427975,0.06,214.49,214.48,64.84056777]
[1757336428180,0.06,214.49,214.48,2.55432384]
[1757336428489,0.78,214.49,214.45,0.2]
[1757336428796,2.4767464,214.46,214.45,0.2]
[1757336428960,3.1967464,214.46,214.45,31.54]
[1757336429377,0.06,214.49,214.45,31.54]
[1757336429378,0.06,214.49,214.45,32.23]
[1757336429578,0.06,214.49,214.48,26.0]
[1757336429882,0.06,214.49,214.48,61.86]
[1757336432188,0.78,214.49,214.48,35.86]
[1757336432390,5.44222201,214.49,214.48,35.86]
[1757336433586,0.78,214.49,214.48,35.86]
[1757336433790,4.72222201,214.49,214.48,35.86]
[1757336433999,7.91896841,214.49,214.48,35.86]
[1757336434293,0.06,214.49,214.48,35.86]
[1757336437287,0.76,214.49,214.48,35.86]
[1757336437695,0.06,214.49,214.48,35.86]
[1757336437995,2.5367464,214.49,214.48,35.86]
[1757336438198,0.06,214.49,214.48,35.86]
[1757336438776,0.06,214.49,214.48,36.55]
[1757336438980,0.06,214.49,214.48,54.80803339]
[1757336439177,0.06,214.49,214.48,57.28477979]
[1757336440092,0.06,214.49,214.48,35.96]
[1757336440478,2.5367464,214.49,214.46,1.86467147]
[1757336440678,2.5367464,214.49,214.47,35.98]
[1757336440902,0.06,214.49,214.47,35.98]
[1757336442492,0.06,214.49,214.48,0.69]
[1757336445086,0.06,214.49,214.48,5.35243938]
[1757336445311,0.06,214.49,214.48,0.69]
[1757336446003,0.06,214.49,214.48,5.35243938]
[1757336448190,0.06,214.49,214.48,0.69]
[1757336449910,0.06,214.49,214.46,18.25845422]
[1757336450110,0.06,214.49,214.48,0.69]
[1757336451105,0.06,214.49,214.48,5.35243938]
[1757336453195,0.06,214.49,214.48,5.38243938]
[1757336455794,0.06,214.49,214.48,19.44427732]
[1757336457591,0.06,214.49,214.48,21.30868805]
[1757336462502,0.06,214.51,214.5,13.59559401]
[1757336462809,0.06,214.52,214.51,18.25738133]
[1757336463012,0.06,214.52,214.51,18.94738133]
[1757336463212,0.06,214.52,214.51,56.75135766]
[1757336463806,0.06,214.52,214.51,51.41957034]
[1757336464717,0.06,214.52,214.51,49.55559401]
[1757336468114,0.76,214.52,214.51,35.94]
[1757336469420,5.42157001,214.52,214.51,35.94]
[1757336470299,0.76,214.52,214.51,35.94]
[1757336472327,0.06,214.52,214.51,35.94]
[1757336473394,0.76,214.52,214.48,0.03]
[1757336473605,0.06,214.52,214.51,26.0]
[1757336473818,0.06,214.52,214.51,61.92]
[1757336476019,3.2367464,214.52,214.48,0.03]
[1757336476226,3.2367464,214.52,214.51,26.0]
[1757336476410,3.2367464,214.52,214.51,61.96]
[1757336476411,0.76,214.52,214.51,61.96]
[1757336477124,5.42157001,214.52,214.51,61.96]
[1757336479405,4.72157001,214.52,214.48,26.03]
[1757336479605,4.72157001,214.52,214.51,26.0]
[1757336479824,5.42157001,214.52,214.51,61.96]
[1757336480730,7.89831641,214.52,214.48,0.03]
[1757336480931,7.89831641,214.52,214.49,35.94]
[1757336480932,3.1767464,214.51,214.49,35.94]
[1757336481139,0.7,214.5,214.49,35.94]
[1757336482416,11.71392504,214.52,214.49,35.94]
[1757336482709,4.6618152,214.51,214.49,35.94]
[1757336482922,4.6618152,214.51,214.49,36.66]
[1757336483423,4.6618152,214.51,214.49,35.94]
[1757336484133,4.72157001,214.52,214.49,35.94]
[1757336484627,4.72157001,214.52,214.49,36.66]
[1757336485335,0.06,214.52,214.5,0.72]
[1757336485634,0.06,214.52,214.51,35.94]
[1757336490028,0.06,214.52,214.51,36.69]
[1757336490242,0.06,214.52,214.51,26.75]
[1757336490412,0.06,214.52,214.51,62.67]
[1757336492435,0.06,214.52,214.51,67.33178732]
[1757336493930,0.06,214.52,214.51,62.67]
[1757336495143,0.06,214.52,214.51,67.33178732]
[1757336496243,0.06,214.52,214.51,0.75]
[1757336496411,0.06,214.52,214.51,35.93]
[1757336496739,0.06,214.52,214.51,36.63]
[1757336497718,0.06,214.52,214.51,26.03]
[1757336498026,4.60184016,214.52,214.51,0.03]
[1757336498233,4.60184016,214.52,214.51,35.95]
[1757336498551,0.06,214.52,214.51,35.95]
[1757336498746,0.73,214.52,214.51,35.95]
[1757336499851,5.39157001,214.52,214.51,35.95]
[1757336500031,4.72157001,214.52,214.51,35.95]
[1757336500338,4.72157001,214.52,214.51,35.9]
[1757336501631,0.06,214.52,214.51,36.6]
[1757336501831,0.06,214.52,214.51,50.19559401]
[1757336502035,0.06,214.52,214.51,54.85738133]
[1757336506223,0.06,214.52,214.51,55.32356006]
[1757336506718,0.06,214.53,214.51,55.32356006]
[1757336506928,0.06,214.54,214.52,14.29559401]
[1757336507245,0.06,214.54,214.53,50.00172928]
[1757336507448,0.06,214.55,214.54,13.59559401]
[1757336507648,0.06,214.55,214.54,14.29559401]
[1757336508154,0.06,214.56,214.54,18.95672946]
[1757336508320,0.67,214.7,214.56,39.59559401]
[1757336508516,4.65772623,214.7,214.58,13.59559401]
[1757336508734,0.67,214.69,214.58,13.59559401]
[1757336508973,0.67,214.69,214.58,14.76162066]
[1757336510646,0.67,214.69,214.58,23.13793696]
[1757336510949,0.67,214.68,214.58,23.13793696]
[1757336511629,0.67,214.68,214.58,27.68585679]
[1757336514058,0.67,214.67,214.58,29.5490517]
[1757336514258,0.67,214.67,214.58,65.4690517]
[1757336514632,0.67,214.7,214.6,39.59559401]
[1757336514832,51.0,214.77,214.61,13.59559401]
[1757336515048,132.4,214.78,214.61,50.21559401]
[1757336515049,0.67,214.68,214.61,50.21559401]
[1757336515764,0.67,214.67,214.61,40.29559401]
[1757336515944,0.77,214.62,214.61,49.51559401]
[1757336516130,0.77,214.62,214.58,8.26396957]
[1757336516473,0.1,214.62,214.59,35.94]
[1757336516638,0.1,214.62,214.61,26.0]
[1757336516838,0.77,214.62,214.61,61.96]
[1757336517143,0.77,214.62,214.61,35.96]
[1757336517346,0.1,214.62,214.59,13.59559401]
[1757336517544,0.1,214.62,214.6,61.96]
[1757336517958,0.1,214.62,214.61,61.94]
[1757336518254,0.77,214.62,214.61,61.94]
[1757336519250,0.1,214.62,214.61,61.94]
[1757336520354,0.1,214.62,214.61,75.53559401]
[1757336520543,0.1,214.62,214.61,76.23559401]
[1757336521859,4.65549348,214.8,214.65,26.0]
[1757336522064,0.67,214.74,214.7,26.0]
[1757336522255,0.67,214.74,214.73,26.0]
[1757336522561,4.51471962,214.76,214.73,26.0]
[1757336522745,4.51471962,214.74,214.69,26.0]
[1757336523057,16.29498579,214.79,214.73,26.0]
[1757336523259,16.29498579,214.79,214.74,36.26]
[1757336523561,16.29498579,214.79,214.75,36.28]
[1757336523766,0.67,214.78,214.76,36.28]
[1757336524156,0.67,214.77,214.76,36.28]
[1757336524550,5.18471962,214.77,214.76,36.28]
[1757336526171,0.67,214.77,214.76,36.28]
[1757336526539,9.8408634,214.77,214.69,26.72]
[1757336526772,5.17471962,214.76,214.73,26.0]
[1757336526969,5.17471962,214.76,214.74,36.26]
[1757336526970,4.51471962,214.76,214.74,36.26]
[1757336527272,0.66,214.75,214.74,36.26]
[1757336529156,0.66,214.75,214.74,36.24]
[1757336529550,0.66,214.75,214.71,26.0]
[1757336529750,0.66,214.75,214.72,62.24]
[1757336529954,0.66,214.75,214.73,36.24]
[1757336530658,0.06,214.78,214.76,26.0]
[1757336530950,0.06,214.78,214.77,36.24]
[1757336531360,0.72,214.78,214.77,36.24]
[1757336531775,5.23471962,214.78,214.77,36.24]
[1757336534548,5.23471962,214.78,214.76,26.0]
[1757336534854,4.57471962,214.78,214.77,36.2]
[1757336537669,0.06,214.78,214.77,36.2]
[1757336538177,4.57471962,214.78,214.77,36.2]
[1757336538874,4.57471962,214.78,214.77,36.18]
[1757336539172,0.06,214.78,214.77,36.18]
[1757336539376,4.57471962,214.78,214.77,36.18]
[1757336539768,0.06,214.78,214.77,36.18]
[1757336541162,0.06,214.78,214.77,36.16]
[1757336541363,0.06,214.78,214.75,26.0]
[1757336541565,0.06,214.78,214.76,36.16]
[1757336541762,0.06,214.78,214.77,36.16]
[1757336541989,4.57471962,214.78,214.75,26.0]
[1757336542285,4.57471962,214.78,214.73,26.0]
[1757336542286,4.51471962,214.76,214.73,26.0]
[1757336542489,4.51471962,214.75,214.74,36.16]
[1757336542690,4.51471962,214.75,214.73,26.0]
[1757336542892,4.51471962,214.75,214.74,36.16]
[1757336543894,4.71602873,214.78,214.77,26.0]
[1757336544091,9.23074835,214.78,214.77,62.14]
[1757336544473,0.06,214.78,214.77,62.14]
[1757336545775,0.06,214.78,214.72,4.65721288]
[1757336545776,4.57471962,214.78,214.72,26.0]
[1757336546075,0.06,214.78,214.76,26.0]
[1757336546284,0.06,214.78,214.77,36.14]
[1757336546514,4.57471962,214.78,214.77,36.14]
[1757336547093,0.06,214.78,214.77,36.14]
[1757336547301,4.57471962,214.78,214.77,36.14]
[1757336547478,0.06,214.78,214.77,36.14]
[1757336547679,4.57471962,214.78,214.74,26.0]
[1757336547899,4.57471962,214.78,214.77,26.0]
[1757336548084,0.06,214.78,214.77,62.14]
[1757336549476,0.06,214.78,214.77,75.73559401]
[1757336549673,0.06,214.78,214.77,39.59559401]
[1757336549986,0.06,214.78,214.75,13.59559401]
[1757336550190,0.06,214.78,214.76,36.14]
[1757336550386,0.06,214.78,214.76,36.86]
[1757336550578,0.06,214.78,214.77,0.72]
[1757336550881,0.06,214.78,214.76,36.86]
[1757336551198,0.06,214.78,214.77,0.72]
[1757336551584,0.06,214.78,214.76,36.14]
[1757336551909,0.06,214.78,214.77,0.72]
[1757336552702,0.06,214.78,214.77,36.86]
[1757336553208,0.06,214.78,214.77,0.72]
[1757336553407,0.06,214.78,214.77,36.86]
[1757336554043,0.06,214.78,214.77,36.14]
[1757336554604,0.06,214.78,214.77,36.84]
[1757336557090,0.06,214.78,214.77,36.12]
[1757336557478,0.06,214.78,214.77,36.84]
[1757336557674,0.06,214.78,214.77,36.1]
[1757336557906,0.72,214.78,214.77,36.12]
[1757336558139,0.06,214.78,214.77,36.12]
[1757336558427,0.72,214.78,214.77,62.12]
[1757336558607,0.06,214.78,214.77,62.12]
[1757336559002,0.06,214.78,214.77,36.84]
[1757336559210,0.06,214.78,214.77,50.43559401]
[1757336560528,0.06,214.78,214.77,55.09173779]
[1757336560719,0.06,214.78,214.77,50.43559401]
[1757336562539,0.06,214.78,214.77,13.59559401]
[1757336562826,0.06,214.78,214.77,36.12]
[1757336563033,0.06,214.78,214.77,49.71559401]
[1757336563203,0.06,214.78,214.77,50.43559401]
[1757336563826,0.06,214.78,214.77,52.29714142]
[1757336564613,0.06,214.78,214.77,14.31559401]
[1757336564807,0.06,214.78,214.77,50.45559401]
[1757336568321,0.06,214.78,214.77,52.31714142]
[1757336568642,0.06,214.78,214.77,56.9732852]
[1757336571546,0.06,214.78,214.77,56.9532852]
[1757336571741,0.06,214.78,214.77,20.8332852]
[1757336571942,0.06,214.78,214.77,56.9532852]
[1757336573324,0.06,214.78,214.77,16.17714142]
[1757336573534,0.06,214.78,214.77,52.27714142]
[1757336573830,0.06,214.78,214.77,16.17714142]
[1757336574013,0.06,214.78,214.77,52.27714142]
[1757336574218,0.06,214.78,214.77,15.45714142]
[1757336574415,0.06,214.78,214.77,52.27714142]
[1757336578634,0.06,214.78,214.77,52.23714142]
[1757336578944,0.06,214.78,214.77,49.67559401]
[1757336578945,0.72,214.78,214.77,49.67559401]
[1757336579326,0.72,214.78,214.76,26.0]
[1757336579651,0.72,214.78,214.77,62.08]
[1757336580024,0.06,214.78,214.77,62.08]
[1757336580445,0.06,214.78,214.77,26.0]
[1757336580446,0.72,214.78,214.77,26.0]
[1757336580741,0.72,214.78,214.77,62.08]
[1757336582853,0.06,214.78,214.77,62.08]
[1757336583034,0.06,214.78,214.77,76.39559401]
[1757336583355,0.06,214.78,214.77,78.25714142]
[1757336583950,0.06,214.78,214.77,82.92114142]
[1757336584157,0.06,214.78,214.77,78.25714142]
[1757336585950,0.06,214.78,214.77,78.23714142]
[1757336587830,0.06,214.78,214.77,82.8932852]
[1757336588647,0.06,214.78,214.77,78.23714142]
[1757336589051,0.06,214.78,214.77,82.8932852]
[1757336589252,0.06,214.78,214.77,46.8332852]
[1757336589552,0.06,214.78,214.77,82.8732852]
[1757336590334,0.0041091,214.78,214.77,42.16714142]
[1757336590534,0.0041091,214.78,214.77,76.36559401]
[1757336590735,0.0041091,214.78,214.77,78.22722806]
[1757336590956,0.0041091,214.78,214.77,42.16722806]
[1757336591145,0.0041091,214.78,214.77,76.46559401]
[1757336591346,0.0041091,214.78,214.77,75.75559401]
[1757336591658,0.0041091,214.78,214.77,76.46559401]
[1757336592456,0.0041091,214.78,214.77,81.12173779]
[1757336592759,0.0041091,214.78,214.77,76.46559401]
[1757336593863,0.0041091,214.78,214.77,78.32722806]
[1757336594238,0.0041091,214.78,214.77,76.46559401]
[1757336594764,0.0041091,214.78,214.77,76.44559401]
[1757336595546,0.0041091,214.78,214.77,78.30722806]
[1757336596864,0.0041091,214.78,214.77,41.45722806]
[1757336597042,0.0041091,214.78,214.77,51.57722806]
[1757336597242,0.0041091,214.78,214.77,15.45722806]
[1757336597444,0.0041091,214.78,214.77,51.57722806]
[1757336598354,0.7141091,214.78,214.77,37.98163405]
[1757336599572,0.7141091,214.78,214.77,27.86163405]
[1757336599758,0.7141091,214.78,214.77,63.98163405]
[1757336600463,0.0041091,214.78,214.77,63.98163405]
[1757336600965,0.0041091,214.78,214.77,64.01163405]
[1757336603168,0.0041091,214.78,214.77,27.89163405]
[1757336603350,0.0041091,214.78,214.77,77.56722806]
[1757336603552,0.0041091,214.78,214.77,78.27722806]
[1757336604688,0.0041091,214.78,214.77,82.93337184]
[1757336605750,0.0041091,214.78,214.77,78.27722806]
[1757336605958,0.0041091,214.78,214.77,77.56722806]
[1757336607876,0.7141091,214.78,214.77,1.89163405]
[1757336608054,0.7141091,214.78,214.77,37.95163405]
[1757336608674,0.0041091,214.78,214.77,37.95163405]
[1757336609578,0.7141091,214.78,214.77,37.95163405]
[1757336609873,0.0041091,214.78,214.77,37.95163405]
[1757336610785,0.7141091,214.78,214.77,37.95163405]
[1757336610988,0.7141091,214.78,214.77,27.89163405]
[1757336611192,0.0041091,214.78,214.77,63.95163405]
[1757336613382,0.0041091,214.78,214.77,27.89163405]
[1757336613586,0.0041091,214.78,214.77,63.93163405]
[1757336613887,0.7141091,214.78,214.77,27.89163405]
[1757336614056,0.7141091,214.78,214.77,63.91163405]
[1757336615377,0.7141091,214.78,214.77,27.89163405]
[1757336615590,0.7141091,214.78,214.77,0.03]
[1757336615591,9.87549011,214.78,214.77,0.03]
[1757336615772,9.87549011,214.78,214.77,36.05]
[1757336616565,5.37003609,214.78,214.77,36.05]
[1757336616858,9.87549011,214.78,214.77,36.15]
[1757336617776,5.21956312,214.78,214.77,36.15]
[1757336617969,0.7141091,214.78,214.77,36.15]
[1757336618471,5.21956312,214.78,214.77,36.15]
[1757336618777,9.87549011,214.78,214.77,36.15]
[1757336619478,0.7141091,214.78,214.77,36.15]
[1757336620158,5.37003609,214.78,214.77,36.15]
[1757336620372,9.87549011,214.78,214.77,36.15]
[1757336620582,5.37003609,214.78,214.77,36.15]
[1757336620875,5.37003609,214.78,214.77,0.03]
[1757336621181,9.87549011,214.78,214.77,36.13]
[1757336622276,5.37003609,214.78,214.77,36.13]
[1757336622480,9.87549011,214.78,214.77,0.03]
[1757336622664,5.37003609,214.78,214.77,0.03]
[1757336622861,9.87549011,214.78,214.77,36.13]
[1757336624797,0.0041091,214.78,214.77,36.13]
[1757336624981,0.7141091,214.78,214.77,36.13]
[1757336625281,0.0041091,214.78,214.77,36.13]
[1757336626271,0.0041091,214.78,214.77,36.84]
[1757336628378,0.0041091,214.78,214.77,41.59528476]
[1757336631187,0.0041091,214.78,214.77,55.19087877]
[1757336631780,0.0041091,214.78,214.77,41.59528476]
[1757336635795,0.0041091,214.78,214.77,4.78528476]
[1757336635975,0.0041091,214.78,214.77,66.86528476]
[1757336636177,0.0041091,214.78,214.77,30.78528476]
[1757336636369,0.0041091,214.78,214.77,66.86528476]
[1757336637289,0.0041091,214.78,214.77,67.57528476]
[1757336637488,0.0041091,214.78,214.77,66.86528476]
[1757336637687,0.0041091,214.78,214.77,67.57528476]
[1757336638382,0.0041091,214.78,214.77,66.86528476]
[1757336638693,0.0041091,214.78,214.77,4.78528476]
[1757336638867,0.7141091,214.78,214.77,40.88528476]
[1757336639071,0.7141091,214.78,214.77,62.13]
[1757336639490,5.37003609,214.78,214.77,62.13]
[1757336639808,5.37003609,214.78,214.77,36.13]
[1757336639980,0.7141091,214.78,214.77,36.13]
[1757336640183,0.0041091,214.78,214.77,36.13]
[1757336640494,5.37003609,214.78,214.77,36.13]
[1757336640678,0.0041091,214.78,214.77,36.13]
[1757336642798,0.0041091,214.78,214.77,36.84]
[1757336643605,0.0041091,214.78,214.77,36.86]
[1757336644903,0.0041091,214.78,214.77,62.15]
[1757336645104,0.0041091,214.78,214.77,26.03]
[1757336645293,0.0041091,214.78,214.77,62.13]
[1757336646810,0.0041091,214.78,214.77,62.85]
[1757336647413,0.0041091,214.78,214.77,62.13]
[1757336647597,0.0041091,214.78,214.77,0.03]
[1757336647784,0.0041091,214.78,214.77,36.11]
[1757336648398,0.7241091,214.78,214.77,0.03]
[1757336648703,0.7241091,214.78,214.77,36.11]
[1757336648704,5.22956312,214.78,214.77,36.11]
[1757336648910,0.7241091,214.78,214.77,0.03]
[1757336649081,5.22956312,214.78,214.77,0.03]
[1757336649286,0.7241091,214.78,214.77,36.13]
[1757336649597,5.38003609,214.78,214.77,36.13]
[1757336649910,9.88549011,214.78,214.77,0.03]
[1757336650297,9.88549011,214.78,214.77,36.17]
[1757336650801,9.88549011,214.78,214.77,0.03]
[1757336650994,5.38003609,214.78,214.77,36.17]
[1757336651199,9.88549011,214.78,214.77,36.17]
[1757336651381,5.38003609,214.78,214.77,36.17]
[1757336652616,9.88549011,214.78,214.77,36.17]
[1757336652791,4.66003609,214.78,214.77,0.03]
[1757336652992,4.66003609,214.78,214.77,36.19]
[1757336653395,0.0041091,214.78,214.77,36.17]
[1757336654490,0.0041091,214.78,214.77,36.89]
[1757336656101,0.0041091,214.78,214.77,0.75]
[1757336656308,0.0041091,214.78,214.77,36.91]
[1757336657116,0.0041091,214.78,214.77,0.75]
[1757336657316,0.0041091,214.78,214.77,36.91]
[1757336657913,0.0041091,214.78,214.77,0.03]
[1757336658093,0.0041091,214.78,214.77,36.17]
[1757336658714,0.7241091,214.78,214.77,0.03]
[1757336659021,0.0041091,214.78,214.77,36.21]
[1757336660697,0.0041091,214.78,214.77,36.93]
[1757336662415,0.0041091,214.78,214.77,50.52559401]
[1757336663014,0.0041091,214.78,214.77,14.34559401]
[1757336663223,0.0041091,214.78,214.77,50.56559401]
[1757336663415,0.0041091,214.78,214.77,19.00959401]
[1757336663597,0.0041091,214.78,214.77,50.54559401]
[1757336663915,0.0041091,214.78,214.77,36.95]
[1757336665106,0.0041091,214.78,214.77,38.81180735]
[1757336665423,0.0041091,214.78,214.77,52.40740136]
[1757336666105,0.06,214.8,214.77,52.40740136]
[1757336666304,0.06,214.8,214.79,13.59559401]
[1757336666722,0.06,214.8,214.79,14.31559401]
[1757336666915,0.06,214.8,214.79,36.2]
[1757336667222,0.06,214.8,214.77,0.03]
[1757336667602,0.06,214.8,214.79,1.86154741]
[1757336668115,0.06,214.8,214.79,0.72]
[1757336668296,0.06,214.8,214.79,2.5817207]
[1757336670035,0.06,214.8,214.79,16.17731471]
[1757336671531,0.06,214.8,214.79,52.37731471]
[1757336675309,0.06,214.8,214.79,16.17731471]
[1757336675511,0.06,214.8,214.79,52.37731471]
[1757336675823,0.06,214.8,214.79,1.8617207]
[1757336676123,0.06,214.8,214.79,36.2]
[1757336676732,0.76,214.8,214.78,1.86180735]
[1757336676912,0.76,214.8,214.79,36.24]
[1757336678031,5.41561027,214.8,214.79,26.0]
[1757336678533,5.41561027,214.8,214.79,62.24]
[1757336680038,4.71561027,214.8,214.79,62.24]
[1757336680422,5.41561027,214.8,214.79,62.24]
[1757336681233,4.71561027,214.8,214.79,62.24]
[1757336681410,0.06,214.8,214.79,62.24]
[1757336685336,0.06,214.8,214.79,62.96]
[1757336685533,0.76,214.8,214.79,26.0]
[1757336685745,0.76,214.8,214.79,62.18]
[1757336686248,0.76,214.8,214.77,13.99485512]